[Event "Championnat d'Europe de Blitz"]
[Date "2024.12.09"]
[White "Lagarde, Maxime"]
[Black "Zawadzka, Jolanta"]
[WhiteElo "2600"]
[BlackElo "2331"]
[Round "4.30"]
[Result "1-0"]
[TimeControl "180+2"]

1. d4 {[%emt 00:04:22] [%clk 00:03:03]} d5 {[%emt 00:00:01] [%clk 00:03:03]} 2.
Nf3 {[%emt 00:00:02] [%clk 00:03:03]} Nf6 {[%emt 00:00:01] [%clk 00:03:04]} 3.
g3 {[%emt 00:00:03] [%clk 00:03:04]} Bf5 {[%clk 00:03:05]} 4. Nh4 {[%emt
00:00:03] [%clk 00:03:03]} Be4 {[%emt 00:00:06] [%clk 00:03:01]} 5. f3 {[%emt
00:00:01] [%clk 00:03:04]} Bg6 {[%emt 00:00:01] [%clk 00:03:02]} 6. c4 {[%emt
00:00:01] [%clk 00:03:05]} e6 {[%emt 00:00:06] [%clk 00:02:57]} 7. Nc3 {[%emt
00:00:01] [%clk 00:03:06]} Be7 {[%emt 00:00:09] [%clk 00:02:50]} 8. e4 {[%emt
00:00:09] [%clk 00:03:00]} dxe4 {[%emt 00:00:08] [%clk 00:02:44]} 9. Nxg6 {[%emt
00:00:02] [%clk 00:03:00]} hxg6 {[%emt 00:00:03] [%clk 00:02:43]} 10. fxe4
{[%emt 00:00:01] [%clk 00:03:00]} e5 {[%emt 00:00:09] [%clk 00:02:36]} 11. d5
{[%emt 00:00:11] [%clk 00:02:51]} Nbd7 {[%emt 00:00:12] [%clk 00:02:26]} 12. Qf3
{[%emt 00:00:09] [%clk 00:02:44]} Bc5 {[%emt 00:00:17] [%clk 00:02:12]} 13. h4
{[%emt 00:00:26] [%clk 00:02:19]} Qe7 {[%emt 00:00:07] [%clk 00:02:08]} 14. Bh3
{[%emt 00:00:07] [%clk 00:02:13]} O-O-O {[%emt 00:00:21] [%clk 00:01:50]} 15.
Bg5 {[%emt 00:00:16] [%clk 00:01:59]} Kb8 {[%emt 00:00:02] [%clk 00:01:50]} 16.
O-O-O {[%emt 00:00:05] [%clk 00:01:55]} a6 {[%emt 00:00:08] [%clk 00:01:45]} 17.
Rhf1 {[%emt 00:00:03] [%clk 00:01:54]} Nb6 {[%emt 00:00:09] [%clk 00:01:38]} 18.
Qd3 {[%emt 00:00:15] [%clk 00:01:41]} Rd6 {[%emt 00:00:06] [%clk 00:01:35]} 19.
Kb1 {[%emt 00:00:02] [%clk 00:01:40]} Qe8 {[%emt 00:00:06] [%clk 00:01:30]} 20.
Rc1 {[%emt 00:00:17] [%clk 00:01:26]} Nfd7 {[%emt 00:00:08] [%clk 00:01:24]} 21.
b3 {[%emt 00:00:05] [%clk 00:01:23]} f6 {[%emt 00:00:05] [%clk 00:01:21]} 22.
Be3 {[%emt 00:00:02] [%clk 00:01:22]} Qe7 {[%emt 00:00:37] [%clk 00:00:47]} 23.
Qd2 {[%emt 00:00:03] [%clk 00:01:21]} c6 {[%emt 00:00:08] [%clk 00:00:41]} 24.
Qf2 {[%emt 00:00:04] [%clk 00:01:19]} Bxe3 {[%emt 00:00:03] [%clk 00:00:41]} 25.
Qxe3 {[%emt 00:00:01] [%clk 00:01:19]} cxd5 {[%emt 00:00:16] [%clk 00:00:27]}
26. exd5 {[%emt 00:00:22] [%clk 00:00:59]} Rc8 {[%emt 00:00:08] [%clk 00:00:20]}
27. Ne4 {[%emt 00:00:07] [%clk 00:00:55]} f5 {[%emt 00:00:01] [%clk 00:00:21]}
28. Nxd6 {[%emt 00:00:04] [%clk 00:00:52]} Qxd6 {[%emt 00:00:01] [%clk
00:00:21]} 29. g4 {[%emt 00:00:06] [%clk 00:00:49]} f4 {[%emt 00:00:05]} 30. Qe2
{[%clk 00:00:48]} Nc5 {[%emt 00:00:05] [%clk 00:00:18]} 31. g5 {[%emt 00:00:02]
[%clk 00:00:48]} Re8 {[%emt 00:00:02] [%clk 00:00:19]} 32. Rxf4 {[%emt 00:00:04]
[%clk 00:00:46]} Nd3 {[%emt 00:00:07] [%clk 00:00:14]} 33. Qxd3 {[%emt 00:00:17]
[%clk 00:00:31]} exf4 {[%emt 00:00:01] [%clk 00:00:15]} 34. c5 {[%clk 00:00:32]}
Qxd5 {[%emt 00:00:03] [%clk 00:00:14]} 35. Qxg6 {[%emt 00:00:01] [%clk
00:00:33]} Rf8 {[%emt 00:00:12] [%clk 00:00:04]} 36. cxb6 {[%emt 00:00:07] [%clk
00:00:28]} f3 {[%emt 00:00:02] [%clk 00:00:04]} 37. Qc2 {[%emt 00:00:07] [%clk
00:00:23]} Qd8 {[%emt 00:00:03] [%clk 00:00:03]} 38. Qc7+ {[%emt 00:00:02] [%clk
00:00:23]} 1-0

[Site "Europe Echecs"]

[Event "Championnat d'Europe de Blitz"]
[Date "2024.12.09"]
[White "Radovanovic, Dusan"]
[Black "Pantsulaia, Levan"]
[WhiteElo "2274"]
[BlackElo "2522"]
[Round "4.31"]
[Result "0-1"]
[TimeControl "180+2"]

1. e4 {[%emt 00:00:02] [%clk 00:03:02]} c5 {[%clk 00:03:03]} 2. Nf3 {[%emt
00:00:01] [%clk 00:03:03]} e6 {[%clk 00:03:05]} 3. d4 {[%emt 00:00:02] [%clk
00:03:03]} cxd4 {[%clk 00:03:05]} 4. Nxd4 {[%clk 00:03:04]} a6 {[%clk 00:03:06]}
5. Nc3 {[%emt 00:00:11] [%clk 00:02:55]} b5 {[%clk 00:03:07]} 6. Bd3 {[%clk
00:02:56]} Bb7 {[%emt 00:00:01] [%clk 00:03:09]} 7. Qe2 {[%emt 00:00:05] [%clk
00:02:54]} Nc6 {[%emt 00:00:03] [%clk 00:03:07]} 8. Nxc6 {[%emt 00:00:03] [%clk
00:02:53]} Bxc6 {[%emt 00:00:01] [%clk 00:03:08]} 9. O-O {[%emt 00:00:02] [%clk
00:02:53]} Bc5 {[%emt 00:00:01] [%clk 00:03:09]} 10. Bf4 {[%emt 00:00:06] [%clk
00:02:50]} Ne7 {[%emt 00:00:04] [%clk 00:03:06]} 11. a3 {[%emt 00:00:44] [%clk
00:02:08]} O-O {[%emt 00:00:03] [%clk 00:03:03]} 12. Rad1 {[%emt 00:00:07] [%clk
00:02:04]} Ng6 {[%emt 00:00:18] [%clk 00:02:47]} 13. Be3 {[%emt 00:00:09] [%clk
00:01:58]} Qb6 {[%emt 00:00:02] [%clk 00:02:47]} 14. Bxc5 {[%emt 00:00:03] [%clk
00:01:57]} Qxc5 {[%emt 00:00:01] [%clk 00:02:48]} 15. Kh1 {[%emt 00:00:07] [%clk
00:01:51]} f5 {[%emt 00:00:19] [%clk 00:02:30]} 16. exf5 {[%emt 00:00:26] [%clk
00:01:27]} Bxg2+ {[%emt 00:00:09] [%clk 00:02:24]} 0-1

[Site "Europe Echecs"]

[Event "Championnat d'Europe de Blitz"]
[Date "2024.12.09"]
[White "Dinev, Dejan"]
[Black "Dardha, Daniel"]
[WhiteElo "2209"]
[BlackElo "2639"]
[Round "4.32"]
[Result "0-1"]
[TimeControl "180+2"]

1. d4 {[%emt 00:00:05] [%clk 00:02:58]} Nf6 {[%emt 00:00:02] [%clk 00:03:03]} 2.
Nf3 {[%clk 00:03:00]} b6 {[%clk 00:03:04]} 3. g3 {[%clk 00:03:01]} Bb7 {[%clk
00:03:05]} 4. Bg2 {[%clk 00:03:02]} g6 {[%clk 00:03:07]} 5. O-O {[%emt 00:00:01]
[%clk 00:03:03]} Bg7 {[%emt 00:00:01] [%clk 00:03:08]} 6. c4 {[%emt 00:00:01]
[%clk 00:03:04]} O-O {[%emt 00:00:01] [%clk 00:03:08]} 7. Nc3 {[%emt 00:00:01]
[%clk 00:03:04]} Ne4 {[%clk 00:03:09]} 8. Qc2 {[%emt 00:00:08] [%clk 00:03:00]}
Nxc3 {[%emt 00:00:03] [%clk 00:03:08]} 9. bxc3 {[%emt 00:00:02] [%clk 00:03:01]}
Nc6 {[%emt 00:00:02] [%clk 00:03:08]} 10. Rb1 {[%emt 00:00:03] [%clk 00:03:00]}
Na5 {[%emt 00:00:02] [%clk 00:03:08]} 11. c5 {[%emt 00:00:04] [%clk 00:02:59]}
d6 {[%emt 00:00:02] [%clk 00:03:09]} 12. cxd6 {[%emt 00:00:08] [%clk 00:02:52]}
cxd6 {[%emt 00:00:02] [%clk 00:03:08]} 13. e4 {[%emt 00:00:11] [%clk 00:02:43]}
Rc8 {[%emt 00:00:02] [%clk 00:03:08]} 14. Re1 {[%emt 00:00:06] [%clk 00:02:40]}
Qc7 {[%emt 00:00:03] [%clk 00:03:07]} 15. Bg5 {[%emt 00:00:15] [%clk 00:02:27]}
h6 {[%emt 00:00:10] [%clk 00:02:59]} 16. Bd2 {[%emt 00:00:05] [%clk 00:02:24]}
Nc4 {[%emt 00:00:01] [%clk 00:03:00]} 17. Bc1 {[%emt 00:00:01] [%clk 00:02:24]}
e6 {[%emt 00:00:06] [%clk 00:02:56]} 18. Bf1 {[%emt 00:00:20] [%clk 00:02:06]}
f5 {[%emt 00:00:26] [%clk 00:02:33]} 19. Bxc4 {[%emt 00:01:02] [%clk 00:01:06]}
Qxc4 {[%emt 00:00:02] [%clk 00:02:33]} 20. Nh4 {[%emt 00:00:47] [%clk 00:00:21]}
g5 {[%emt 00:00:22] [%clk 00:02:13]} 21. Ng6 {[%emt 00:00:04] [%clk 00:00:18]}
Rfe8 {[%emt 00:00:04] [%clk 00:02:10]} 22. d5 {[%emt 00:00:11] [%clk 00:00:10]}
Qxc3 {[%emt 00:00:08] [%clk 00:02:04]} 23. Qxc3 {[%emt 00:00:07] [%clk
00:00:06]} Bxc3 {[%emt 00:00:02] [%clk 00:02:04]} 0-1

[Site "Europe Echecs"]

[Event "Championnat d'Europe de Blitz"]
[Date "2024.12.09"]
[White "Djukic, Nikola"]
[Black "Djurovic, Peko"]
[WhiteElo "2493"]
[BlackElo "2253"]
[Round "4.33"]
[Result "1-0"]
[TimeControl "180+2"]

1. c4 {[%clk 00:03:02]} e6 {[%emt 00:00:04] [%clk 00:03:01]} 2. g3 {[%emt
00:00:02] [%clk 00:03:03]} Nf6 {[%emt 00:00:01] [%clk 00:03:01]} 3. Bg2 {[%emt
00:00:02] [%clk 00:03:03]} d5 {[%emt 00:00:02] [%clk 00:03:01]} 4. Nf3 {[%emt
00:00:01] [%clk 00:03:03]} h6 {[%emt 00:00:11] [%clk 00:02:53]} 5. O-O {[%emt
00:00:04] [%clk 00:03:01]} Bd6 {[%emt 00:00:02] [%clk 00:02:53]} 6. b3 {[%emt
00:00:04] [%clk 00:02:58]} O-O {[%emt 00:00:04] [%clk 00:02:51]} 7. Bb2 {[%emt
00:00:02] [%clk 00:02:59]} b6 {[%emt 00:00:05] [%clk 00:02:48]} 8. d3 {[%emt
00:00:08] [%clk 00:02:53]} Bb7 {[%emt 00:00:05] [%clk 00:02:45]} 9. Nbd2 {[%emt
00:00:02] [%clk 00:02:53]} Nbd7 {[%emt 00:00:06] [%clk 00:02:41]} 10. Qc2 {[%emt
00:00:04] [%clk 00:02:51]} Qe7 {[%emt 00:00:05] [%clk 00:02:39]} 11. a3 {[%emt
00:00:04] [%clk 00:02:49]} c5 {[%emt 00:00:09] [%clk 00:02:33]} 12. Rfe1 {[%emt
00:00:44] [%clk 00:02:06]} d4 {[%emt 00:00:08] [%clk 00:02:27]} 13. e4 {[%emt
00:00:02] [%clk 00:02:06]} dxe3 {[%emt 00:00:17] [%clk 00:02:12]} 14. fxe3
{[%emt 00:00:06] [%clk 00:02:02]} Rfd8 {[%emt 00:00:39] [%clk 00:01:35]} 15.
Rad1 {[%emt 00:00:26] [%clk 00:01:38]} Rac8 {[%emt 00:00:37]} 16. Nf1 {[%clk
00:01:04]} a6 {[%emt 00:00:08] [%clk 00:01:31]} 17. Bc3 {[%emt 00:00:20] [%clk
00:00:47]} Ba8 {[%emt 00:00:22] [%clk 00:01:11]} 18. Qb2 {[%emt 00:00:02] [%clk
00:00:47]} a5 {[%emt 00:00:06] [%clk 00:01:07]} 19. Nh4 {[%emt 00:00:14] [%clk
00:00:35]} Bxg2 {[%emt 00:00:03] [%clk 00:01:06]} 20. Qxg2 {[%emt 00:00:02]
[%clk 00:00:35]} Ne8 {[%emt 00:00:44] [%clk 00:00:24]} 21. Nf3 {[%emt 00:00:02]
[%clk 00:00:35]} Ndf6 {[%emt 00:00:09] [%clk 00:00:17]} 22. e4 {[%emt 00:00:03]
[%clk 00:00:34]} Bb8 {[%emt 00:00:07] [%clk 00:00:13]} 23. e5 {[%emt 00:00:04]
[%clk 00:00:32]} Nd7 {[%emt 00:00:02] [%clk 00:00:13]} 24. Ne3 {[%emt 00:00:01]
[%clk 00:00:32]} Nf8 {[%emt 00:00:01] [%clk 00:00:14]} 25. Ng4 {[%emt 00:00:04]
[%clk 00:00:30]} Ng6 {[%emt 00:00:02] [%clk 00:00:14]} 26. h4 {[%emt 00:00:01]
[%clk 00:00:31]} Rd7 {[%emt 00:00:07] [%clk 00:00:09]} 27. Qe2 {[%emt 00:00:02]
[%clk 00:00:31]} Rcd8 {[%emt 00:00:01] [%clk 00:00:10]} 28. Rf1 {[%emt 00:00:06]
[%clk 00:00:27]} Nc7 {[%emt 00:00:08] [%clk 00:00:04]} 29. Qe4 {[%emt 00:00:11]
[%clk 00:00:17]} Ne8 {[%emt 00:00:02] [%clk 00:00:05]} 30. Nfh2 {[%emt 00:00:03]
[%clk 00:00:16]} Bc7 {[%emt 00:00:03] [%clk 00:00:04]} 31. Rf3 {[%emt 00:00:01]
[%clk 00:00:17]} Nh8 {[%emt 00:00:02] [%clk 00:00:04]} 32. Rdf1 {[%emt 00:00:04]
[%clk 00:00:16]} Bb8 {[%emt 00:00:02]} 33. Bd2 {[%emt 00:00:01] [%clk 00:00:15]}
Ng6 {[%emt 00:00:02] [%clk 00:00:04]} 34. Bxh6 {[%emt 00:00:02] [%clk 00:00:15]}
gxh6 {[%emt 00:00:02] [%clk 00:00:04]} 35. Nxh6+ {[%emt 00:00:01] [%clk
00:00:16]} Kg7 {[%emt 00:00:04]} 36. Rxf7+ {[%emt 00:00:04] [%clk 00:00:13]}
Kxh6 {[%emt 00:00:01] [%clk 00:00:04]} 37. Rxe7 {[%emt 00:00:02] [%clk
00:00:14]} Rxe7 {[%emt 00:00:01] [%clk 00:00:05]} 38. Ng4+ {[%emt 00:00:02]
[%clk 00:00:13]} Kg7 {[%clk 00:00:06]} 39. h5 {[%clk 00:00:14]} Nh8 {[%emt
00:00:02] [%clk 00:00:06]} 40. Qf4 {[%emt 00:00:04] [%clk 00:00:12]} 1-0

[Site "Europe Echecs"]

[Event "Championnat d'Europe de Blitz"]
[Date "2024.12.09"]
[White "Zhukovskyi, Oleksandr"]
[Black "Baidetskyi, Valentin"]
[WhiteElo "2199"]
[BlackElo "2519"]
[Round "4.34"]
[Result "0-1"]
[TimeControl "180+2"]

1. e4 {[%clk 00:03:03]} d6 {[%emt 00:00:01] [%clk 00:03:04]} 2. d4 {[%clk
00:03:04]} Nf6 {[%clk 00:03:05]} 3. Nc3 {[%clk 00:03:05]} e5 {[%emt 00:00:02]
[%clk 00:03:06]} 4. dxe5 {[%clk 00:03:05]} dxe5 {[%clk 00:03:07]} 5. Qxd8+
{[%emt 00:00:01] [%clk 00:03:06]} Kxd8 {[%clk 00:03:09]} 6. Bc4 {[%clk
00:03:07]} Ke8 {[%clk 00:03:10]} 7. f3 {[%emt 00:01:01] [%clk 00:02:08]} Bc5
{[%emt 00:00:16] [%clk 00:02:56]} 8. Bg5 {[%emt 00:00:02] [%clk 00:02:07]} Nbd7
{[%emt 00:00:14] [%clk 00:02:45]} 9. a3 {[%emt 00:00:43] [%clk 00:01:27]} c6
{[%emt 00:00:04] [%clk 00:02:43]} 10. Ke2 {[%emt 00:00:10] [%clk 00:01:19]} b5
{[%emt 00:00:07] [%clk 00:02:38]} 11. Bb3 {[%emt 00:00:01] [%clk 00:01:19]} a5
{[%emt 00:00:02] [%clk 00:02:38]} 12. a4 {[%emt 00:00:03] [%clk 00:01:18]} b4
{[%emt 00:00:03] [%clk 00:02:37]} 13. Nd1 {[%emt 00:00:05] [%clk 00:01:15]} Ba6+
{[%clk 00:02:38]} 14. Ke1 {[%emt 00:00:04] [%clk 00:01:13]} Bb6 {[%emt 00:00:38]
[%clk 00:02:02]} 15. Ne3 {[%emt 00:00:14] [%clk 00:01:01]} h6 {[%emt 00:00:03]
[%clk 00:02:01]} 16. Bxf6 {[%emt 00:00:01] [%clk 00:01:02]} Bxe3 {[%emt
00:00:09] [%clk 00:01:54]} 17. Bh4 {[%emt 00:00:02] [%clk 00:01:02]} Nc5 {[%emt
00:00:33] [%clk 00:01:23]} 18. Bf2 {[%emt 00:00:12] [%clk 00:00:52]} Bxf2+
{[%emt 00:00:04] [%clk 00:01:21]} 19. Kxf2 {[%emt 00:00:01] [%clk 00:00:53]} Rd8
{[%clk 00:01:23]} 20. Ke3 {[%emt 00:00:07] [%clk 00:00:47]} Nxb3 {[%emt
00:00:02] [%clk 00:01:23]} 21. cxb3 {[%emt 00:00:02] [%clk 00:00:48]} Rd3+
{[%clk 00:01:24]} 22. Kf2 {[%clk 00:00:49]} Rxb3 {[%emt 00:00:04] [%clk
00:01:22]} 23. Rc1 {[%emt 00:00:06] [%clk 00:00:46]} Rxb2+ {[%emt 00:00:01]
[%clk 00:01:23]} 24. Kg3 {[%clk 00:00:47]} Kd7 {[%emt 00:00:01] [%clk 00:01:24]}
25. Rc5 {[%emt 00:00:02] [%clk 00:00:47]} Rb1 {[%emt 00:00:23] [%clk 00:01:02]}
0-1

[Site "Europe Echecs"]

[Event "Championnat d'Europe de Blitz"]
[Date "2024.12.09"]
[White "Janik, Igor"]
[Black "Radeva, Viktoria"]
[WhiteElo "2515"]
[BlackElo "2275"]
[Round "4.35"]
[Result "1-0"]
[TimeControl "180+2"]

1. e4 {[%emt 00:05:10] [%clk 00:03:03]} c5 {[%emt 00:00:02] [%clk 00:03:03]} 2.
Nf3 {[%emt 00:00:01] [%clk 00:03:04]} a6 {[%emt 00:00:04] [%clk 00:03:02]} 3. c3
{[%emt 00:00:05] [%clk 00:03:00]} d5 {[%emt 00:00:02] [%clk 00:03:02]} 4. exd5
{[%emt 00:00:01] [%clk 00:03:01]} Qxd5 {[%clk 00:03:03]} 5. d4 {[%clk 00:03:02]}
Nf6 {[%emt 00:00:04] [%clk 00:03:01]} 6. dxc5 {[%emt 00:00:07] [%clk 00:02:57]}
Qxd1+ {[%emt 00:00:05] [%clk 00:02:59]} 7. Kxd1 {[%emt 00:00:01] [%clk
00:02:57]} Nc6 {[%emt 00:00:09] [%clk 00:02:53]} 8. Be3 {[%emt 00:00:01] [%clk
00:02:58]} e5 {[%emt 00:00:07] [%clk 00:02:48]} 9. Nbd2 {[%emt 00:00:06] [%clk
00:02:54]} Bg4 {[%emt 00:00:07] [%clk 00:02:43]} 10. Kc2 {[%emt 00:00:12] [%clk
00:02:44]} Nd5 {[%emt 00:00:14] [%clk 00:02:32]} 11. b4 {[%emt 00:00:01] [%clk
00:02:45]} f5 {[%emt 00:00:08] [%clk 00:02:25]} 12. Bc4 {[%emt 00:00:08] [%clk
00:02:39]} Nxe3+ {[%emt 00:00:26] [%clk 00:02:01]} 13. fxe3 {[%emt 00:00:02]
[%clk 00:02:39]} Be7 {[%emt 00:00:09] [%clk 00:01:54]} 14. e4 {[%emt 00:00:14]
[%clk 00:02:27]} fxe4 {[%emt 00:00:04] [%clk 00:01:51]} 15. Nxe4 {[%emt
00:00:02] [%clk 00:02:27]} O-O-O {[%emt 00:00:15] [%clk 00:01:38]} 16. Nfd2
{[%emt 00:00:09] [%clk 00:02:21]} Bf5 {[%emt 00:00:10] [%clk 00:01:29]} 17. Rhf1
{[%clk 00:02:22]} g6 {[%emt 00:00:03] [%clk 00:01:29]} 18. Rae1 {[%emt 00:00:10]
[%clk 00:02:14]} Bg5 {[%emt 00:00:05] [%clk 00:01:26]} 19. Rxf5 {[%emt 00:00:16]
[%clk 00:01:59]} gxf5 {[%emt 00:00:02] [%clk 00:01:27]} 20. Nxg5 {[%emt
00:00:02] [%clk 00:01:58]} e4 {[%emt 00:00:57] [%clk 00:00:32]} 21. Nf7 {[%emt
00:00:02] [%clk 00:01:56]} 1-0

[Site "Europe Echecs"]

[Event "Championnat d'Europe de Blitz"]
[Date "2024.12.09"]
[White "Krasteva, Beloslava"]
[Black "Laurusas, Tomas"]
[WhiteElo "2281"]
[BlackElo "2578"]
[Round "4.36"]
[Result "0-1"]
[TimeControl "180+2"]

1. d4 {[%clk 00:03:03]} d5 {[%emt 00:00:01] [%clk 00:03:04]} 2. c4 {[%emt
00:00:01] [%clk 00:03:03]} c6 {[%clk 00:03:05]} 3. cxd5 {[%emt 00:00:03] [%clk
00:03:03]} cxd5 {[%clk 00:03:06]} 4. Bf4 {[%emt 00:00:01] [%clk 00:03:04]} Nf6
{[%emt 00:00:02] [%clk 00:03:07]} 5. Nc3 {[%emt 00:00:01] [%clk 00:03:04]} Nc6
{[%emt 00:00:05] [%clk 00:03:04]} 6. e3 {[%clk 00:03:05]} e6 {[%emt 00:00:05]
[%clk 00:03:02]} 7. Bd3 {[%emt 00:00:09] [%clk 00:02:58]} Be7 {[%emt 00:00:02]
[%clk 00:03:02]} 8. h3 {[%emt 00:00:03] [%clk 00:02:56]} Bd6 {[%emt 00:00:04]
[%clk 00:03:01]} 9. Bxd6 {[%emt 00:00:10] [%clk 00:02:48]} Qxd6 {[%emt 00:00:01]
[%clk 00:03:01]} 10. f4 {[%emt 00:00:01] [%clk 00:02:49]} O-O {[%emt 00:00:03]
[%clk 00:03:00]} 11. Nf3 {[%emt 00:00:03] [%clk 00:02:48]} Bd7 {[%emt 00:00:01]
[%clk 00:03:02]} 12. O-O {[%emt 00:00:05] [%clk 00:02:45]} Rfc8 {[%emt 00:00:02]
[%clk 00:03:01]} 13. Ne5 {[%emt 00:00:04] [%clk 00:02:42]} Na5 {[%emt 00:00:09]
[%clk 00:02:54]} 14. g4 {[%emt 00:00:17] [%clk 00:02:28]} Nc4 {[%emt 00:00:05]
[%clk 00:02:50]} 15. Qe2 {[%emt 00:00:01] [%clk 00:02:28]} Nb6 {[%emt 00:00:23]
[%clk 00:02:29]} 16. g5 {[%emt 00:00:08] [%clk 00:02:21]} Ne4 {[%emt 00:00:10]
[%clk 00:02:22]} 17. Nxe4 {[%emt 00:00:17] [%clk 00:02:06]} dxe4 {[%clk
00:02:23]} 18. Bxe4 {[%emt 00:00:02] [%clk 00:02:06]} Nd5 {[%clk 00:02:24]} 19.
Bxh7+ {[%emt 00:00:33] [%clk 00:01:34]} Kxh7 {[%emt 00:00:01] [%clk 00:02:26]}
20. Qh5+ {[%emt 00:00:01] [%clk 00:01:35]} Kg8 {[%clk 00:02:27]} 21. Qxf7+
{[%emt 00:00:03] [%clk 00:01:35]} Kh8 {[%emt 00:00:04] [%clk 00:02:25]} 22. Qxd7
{[%emt 00:00:30] [%clk 00:01:07]} Qxd7 {[%emt 00:00:01] [%clk 00:02:26]} 23.
Nxd7 {[%emt 00:00:01] [%clk 00:01:08]} Nxe3 {[%emt 00:00:02] [%clk 00:02:27]}
24. Rf2 {[%emt 00:00:24] [%clk 00:00:45]} Nf5 {[%emt 00:00:01] [%clk 00:02:28]}
25. Rd1 {[%emt 00:00:10] [%clk 00:00:38]} Rd8 {[%emt 00:00:02] [%clk 00:02:28]}
26. Nc5 {[%emt 00:00:01] [%clk 00:00:38]} Nxd4 {[%emt 00:00:01] [%clk 00:02:29]}
27. Kf1 {[%emt 00:00:11] [%clk 00:00:29]} b6 {[%emt 00:00:01] [%clk 00:02:30]}
28. Ne4 {[%emt 00:00:12] [%clk 00:00:19]} Nf5 {[%emt 00:00:12] [%clk 00:02:20]}
29. Rxd8+ {[%emt 00:00:09] [%clk 00:00:12]} Rxd8 {[%emt 00:00:01] [%clk
00:02:21]} 30. Ke1 {[%emt 00:00:03] [%clk 00:00:10]} Rd3 {[%emt 00:00:03] [%clk
00:02:20]} 31. Rd2 {[%emt 00:00:06] [%clk 00:00:06]} Re3+ {[%emt 00:00:03] [%clk
00:02:19]} 32. Re2 {[%emt 00:00:02] [%clk 00:00:06]} Rxh3 {[%emt 00:00:02] [%clk
00:02:19]} 33. Nc3 {[%emt 00:00:02] [%clk 00:00:06]} Nd4 {[%emt 00:00:19] [%clk
00:02:03]} 34. Re4 {[%emt 00:00:01] [%clk 00:00:06]} e5 {[%clk 00:02:04]} 35.
fxe5 {[%emt 00:00:03] [%clk 00:00:05]} Nf3+ {[%clk 00:02:05]} 36. Kf2 {[%emt
00:00:02] [%clk 00:00:05]} Nxg5 {[%emt 00:00:01] [%clk 00:02:06]} 37. Rd4 {[%emt
00:00:01] [%clk 00:00:05]} Rh2+ {[%emt 00:00:04] [%clk 00:02:05]} 38. Kg3 {[%emt
00:00:02] [%clk 00:00:06]} Rxb2 {[%emt 00:00:02] [%clk 00:02:05]} 39. Kg4 {[%emt
00:00:03] [%clk 00:00:04]} Rg2+ {[%emt 00:00:04] [%clk 00:02:03]} 40. Kf5 {[%emt
00:00:01] [%clk 00:00:05]} Nf7 {[%emt 00:00:16] [%clk 00:01:49]} 41. e6 {[%emt
00:00:03] [%clk 00:00:05]} Rf2+ {[%emt 00:00:16] [%clk 00:01:35]} 42. Kg6 {[%emt
00:00:01] [%clk 00:00:06]} Ne5+ {[%emt 00:00:02] [%clk 00:01:35]} 43. Kh5 {[%emt
00:00:07]} Nf7 {[%emt 00:00:16]} 0-1

[Site "Europe Echecs"]